lending/lending_fUSD_20251021
["ID","MTS","AMOUNT","RATE_DAILY","PERIOD"]
[391948319,1761019872949,-500.0,0.00034179,14]
[391948320,1761019872958,-500.0,0.00034179,14]
[391948321,1761019872968,-500.0,0.00034179,14]
[391948322,1761019872978,-500.0,0.00034179,14]
[391948323,1761019872987,-500.0,0.00034179,14]
[391948324,1761019873000,-500.0,0.00034179,14]
[391948325,1761019873010,-500.0,0.00034179,14]
[391948326,1761019873020,-500.0,0.00034179,14]
[391948327,1761019873029,-355.56611556,0.00034179,14]
[391948328,1761019873039,-500.0,0.00034179,14]
[391948329,1761019873049,-500.0,0.00034179,14]
[391948330,1761019873063,-500.0,0.00034179,14]
[391948331,1761019873072,-500.0,0.00034179,14]
[391948332,1761019873081,-257.53624371,0.00034179,14]
[391948333,1761019873091,-580.36279503,0.00034179,14]
[391948334,1761019873099,-500.0,0.00034179,14]
[391948335,1761019873109,-500.0,0.00034179,14]
[391948336,1761019873119,-500.0,0.00034179,14]
[391948337,1761019873128,-500.0,0.00034179,14]
[391948338,1761019873137,-346.30153568,0.00034179,14]
[391948339,1761019873146,-500.0,0.00034179,14]
[391948340,1761019873155,-249.70097686,0.00034179,14]
[391948341,1761019873163,-500.0,0.00034179,14]
[391948342,1761019873172,-500.0,0.00034179,14]
[391948343,1761019873181,-500.0,0.00034179,14]
[391948344,1761019873190,-500.0,0.00034179,14]
[391948345,1761019873198,-500.0,0.00034179,14]
[391948346,1761019873207,-500.0,0.00034179,14]
[391948347,1761019873216,-614.164147,0.00034179,14]
[391948348,1761019873225,-500.0,0.00034179,14]
[391948349,1761019873234,-500.0,0.00034179,14]
[391948350,1761019873245,-553.97060161,0.00034179,14]
[391948351,1761019873254,-353.06388915,0.00034179,14]
[391948352,1761019873264,-500.0,0.00034179,14]
[391948353,1761019873277,-500.0,0.00034179,14]
[391948354,1761019873286,-517.55246673,0.00034179,14]
[391948355,1761019873295,-452.06010679,0.00034179,14]
[391948356,1761019873305,-206.56059359,0.00034179,14]
[391948357,1761019873314,-1423.93,0.00034179,14]
[391948358,1761019873323,-1423.93,0.00034179,14]
[391948359,1761019873332,-500.0,0.00034179,14]
[391948360,1761019873341,-1423.93,0.00034179,14]
[391948361,1761019873350,-500.0,0.00034179,14]
[391948362,1761019873359,-1423.93,0.00034179,14]
[391948363,1761019873455,-500.0,0.00034179,14]
[391948364,1761019873464,-1423.93,0.00034179,14]
[391948365,1761019873473,-500.0,0.00034179,14]
[391948366,1761019873483,-500.0,0.00034179,14]
[391948367,1761019873497,-1423.93,0.00034179,14]
[391948368,1761019873507,-500.0,0.00034179,14]
[391948369,1761019873516,-500.0,0.00034179,14]
[391948370,1761019873526,-1423.93,0.00034179,14]
[391948371,1761019873536,-500.0,0.00034179,14]
[391948372,1761019873546,-416.8461179,0.00034179,14]
[391948373,1761019873555,-500.0,0.00034179,14]
[391948374,1761019873566,-500.0,0.00034179,14]
[391948375,1761019873577,-500.0,0.00034179,14]
[391948376,1761019873587,-1423.93,0.00034179,14]
[391948377,1761019873597,-374.7437299,0.00034179,14]
[391948378,1761019873607,-509.03918422,0.00034179,14]
[391948379,1761019873616,-1423.93,0.00034179,14]
[391948380,1761019873625,-1423.93,0.00034179,14]
[391948381,1761019873634,-1423.93,0.00034179,14]
[391948382,1761019873644,-1423.93,0.00034179,14]
[391948383,1761019873653,-1423.93,0.00034179,14]
[391948384,1761019873662,-373.64381445,0.00034179,14]
[391948385,1761019873672,-1423.93,0.00034179,14]
[391948386,1761019873681,-1423.93,0.00034179,14]
[391948387,1761019873690,-500.0,0.00034179,14]
[391948388,1761019873699,-1423.93,0.00034179,14]
[391948389,1761019873708,-1423.93,0.00034179,14]
[391948390,1761019873717,-500.0,0.00034179,14]
[391948391,1761019873726,-1423.93,0.00034179,14]
[391948392,1761019873736,-500.0,0.00034179,14]
[391948393,1761019873750,-500.0,0.00034179,14]
[391948394,1761019873760,-1423.93,0.00034179,14]
[391948395,1761019873770,-500.0,0.00034179,14]
[391948396,1761019873779,-1423.93,0.00034179,14]
[391948397,1761019873788,-500.0,0.00034179,14]
[391948398,1761019873798,-1423.94692785,0.00034179,14]
[391948399,1761019873807,-500.0,0.00034179,14]
[391948400,1761019873816,-500.0,0.00034179,14]
[391948401,1761019873825,-274.87183866,0.00034179,14]
[391948402,1761019873834,-500.0,0.00034179,14]
[391948403,1761019873843,-450.29766483,0.00034179,14]
[391948404,1761019873852,-500.0,0.00034179,14]
[391948405,1761019873860,-439.28283948,0.00034179,14]
[391948406,1761019873869,-151.65517694,0.00034179,14]
[391948407,1761019873879,-2465.63,0.00034179,14]
[391948408,1761019873888,-2465.63,0.00034179,14]
[391948409,1761019873898,-2465.63,0.00034179,14]
[391948410,1761019873907,-2465.63,0.00034179,14]
[391948411,1761019873916,-505.16880896,0.00034179,14]
[391948412,1761019873926,-500.0,0.00034179,2]
[391948413,1761019873935,-2465.63,0.00034179,14]
[391948414,1761019873945,-500.0,0.00034179,2]
[391948415,1761019873954,-2465.63,0.00034179,14]
[391948416,1761019873964,-500.0,0.00034179,2]
[391948417,1761019873973,-2465.63,0.00034179,14]
[391948418,1761019873982,-500.0,0.00034179,14]
[391948419,1761019873996,-500.0,0.00034179,2]
[391948420,1761019874005,-500.0,0.00034179,14]
[391948421,1761019874019,-2465.63,0.00034179,14]
[391948422,1761019874028,-500.0,0.00034179,2]
[391948423,1761019874037,-500.0,0.00034179,14]
[391948424,1761019874047,-2465.63,0.00034179,14]
[391948425,1761019874055,-500.0,0.00034179,2]
[391948426,1761019874068,-444.12960616,0.00034179,14]
[391948427,1761019874079,-2465.63,0.00034179,14]
[391948428,1761019874098,-500.0,0.00034179,2]
[391948429,1761019874114,-2465.63,0.00034179,14]
[391948430,1761019874131,-500.0,0.00034179,14]
[391948431,1761019874149,-500.0,0.00034179,2]
[391948432,1761019874165,-2465.63,0.00034179,14]
[391948433,1761019874184,-500.0,0.00034179,14]
[391948434,1761019874201,-500.0,0.00034179,2]
[391948435,1761019874220,-2465.63,0.00034179,14]
[391948436,1761019874235,-500.0,0.00034179,14]
[391948437,1761019874254,-503.92224274,0.00034179,14]
[391948438,1761019874272,-500.0,0.00034179,2]
[391948439,1761019874289,-2465.63,0.00034179,14]
[391948440,1761019874302,-500.0,0.00034179,14]
[391948441,1761019874320,-500.0,0.00034179,2]
[391948442,1761019874332,-2465.63,0.00034179,14]
[391948444,1761019874347,-168.53255495,0.00034179,14]
[391948445,1761019874360,-500.0,0.00034179,2]
[391948446,1761019874375,-2465.63,0.00034179,14]
[391948447,1761019874390,-500.0,0.00034179,2]
[391948448,1761019874405,-2465.63,0.00034179,14]
[391948449,1761019874420,-500.0,0.00034179,2]
[391948450,1761019874434,-2465.63,0.00034179,14]
[391948451,1761019874449,-500.0,0.00034179,2]
[391948452,1761019874464,-2465.63,0.00034179,14]
[391948453,1761019874477,-500.0,0.00034179,2]
[391948454,1761019874496,-2465.63,0.00034179,14]
[391948455,1761019874512,-2465.82382179,0.00034179,14]
[391948456,1761019874529,-320.48680601,0.00034179,14]
[391948457,1761019874546,-728.32,0.00034179,14]
[391948458,1761019874563,-728.32,0.00034179,14]
[391948459,1761019874581,-367.36302411,0.00034179,14]
[391948460,1761019874597,-500.0,0.00034179,14]
[391948461,1761019874616,-728.32,0.00034179,14]
[391948462,1761019874638,-509.02955352,0.00034179,14]
[391948463,1761019874655,-728.32,0.00034179,14]
[391948464,1761019874673,-728.32,0.00034179,14]
[391948465,1761019874690,-728.32,0.00034179,14]
[391948466,1761019874707,-728.32,0.00034179,14]
[391948467,1761019874726,-728.32,0.00034179,14]
[391948468,1761019874749,-728.32,0.00034179,14]
[391948469,1761019874765,-728.32,0.00034179,14]
[391948470,1761019874782,-728.32,0.00034179,14]
[391948471,1761019874800,-728.32,0.00034179,14]
[391948472,1761019874815,-728.32,0.00034179,14]
[391948473,1761019874824,-728.32,0.00034179,14]
[391948474,1761019874834,-296.45085211,0.00034179,14]
[391948475,1761019874843,-728.32,0.00034179,14]
[391948476,1761019874853,-728.32,0.00034179,14]
[391948477,1761019874862,-728.32,0.00034179,14]
[391948478,1761019874871,-728.32,0.00034179,14]
[391948479,1761019874881,-500.0,0.00034179,14]
[391948480,1761019874890,-510.81791052,0.00034179,14]
[391948481,1761019874900,-728.32,0.00034179,14]
[391948482,1761019874910,-728.32,0.00034179,14]
[391948483,1761019874919,-863.74,0.00034179,14]
[391948484,1761019874929,-728.32249064,0.00034179,14]
[391948485,1761019874938,-863.74,0.00034179,14]
[391948486,1761019874948,-500.0,0.00034179,14]
[391948487,1761019874958,-500.0,0.00034179,14]
[391948488,1761019874967,-863.74,0.00034179,14]
[391948489,1761019874977,-500.0,0.00034179,14]
[391948490,1761019874987,-863.74,0.00034179,14]
[391948491,1761019875002,-500.0,0.00034179,14]
[391948492,1761019875225,-863.74,0.00034179,14]
[391948493,1761019875248,-863.74,0.00034179,14]
[391948494,1761019875258,-500.0,0.00034179,14]
[391948495,1761019875267,-863.74,0.00034179,14]
[391948496,1761019875277,-500.0,0.00034179,14]
[391948497,1761019875287,-863.74,0.00034179,14]
[391948498,1761019875297,-500.0,0.00034179,14]
[391948499,1761019875307,-863.74,0.00034179,14]
[391948500,1761019875316,-417.61660864,0.00034179,14]
[391948501,1761019875326,-500.0,0.00034179,14]
[391948502,1761019875336,-863.74,0.00034179,14]
[391948503,1761019875347,-500.0,0.00034179,14]
[391948504,1761019875356,-500.0,0.00034179,14]
[391948505,1761019875366,-863.74,0.00034179,14]
[391948506,1761019875378,-863.74,0.00034179,14]
[391948507,1761019875388,-500.0,0.00034179,14]
[391948508,1761019875397,-863.74,0.00034179,14]
[391948509,1761019875406,-500.0,0.00034179,14]
[391948510,1761019875415,-500.0,0.00034179,14]
[391948511,1761019875425,-500.0,0.00034179,14]
[391948512,1761019875436,-863.74,0.00034179,14]
[391948513,1761019875445,-500.0,0.00034179,14]
[391948514,1761019875454,-500.0,0.00034179,14]
[391948515,1761019875465,-863.74,0.00034179,14]
[391948516,1761019875474,-600.04873909,0.00034179,14]
[391948517,1761019875483,-863.74,0.00034179,14]
[391948518,1761019875496,-500.0,0.00034179,14]
[391948519,1761019875507,-863.74,0.00034179,14]
[391948520,1761019875516,-863.74,0.00034179,14]
[391948521,1761019875526,-500.0,0.00034179,14]
[391948522,1761019875535,-863.93634444,0.00034179,14]
[391948523,1761019875545,-309.31355039,0.00034179,14]
[391948524,1761019875554,-500.0,0.00034179,14]
[391948525,1761019875564,-500.0,0.00034179,14]
[391948526,1761019875574,-500.0,0.00034179,14]
[391948527,1761019875583,-500.0,0.00034179,14]
[391948528,1761019875593,-500.0,0.00034179,14]
[391948529,1761019875602,-500.0,0.00034179,14]
[391948530,1761019875612,-500.0,0.00034179,14]
[391948531,1761019875621,-615.95980272,0.00034179,14]
[391948532,1761019875630,-500.0,0.00034179,14]
[391948533,1761019875639,-500.0,0.00034179,14]
[391948534,1761019875648,-642.08681158,0.00034179,14]
[391948535,1761019875658,-2337.47,0.00034179,14]
[391948536,1761019875667,-2337.47,0.00034179,14]
[391948537,1761019875676,-2337.47,0.00034179,14]
[391948538,1761019875686,-2337.47,0.00034179,14]
[391948539,1761019875695,-2337.47,0.00034179,14]
[391948540,1761019875704,-2337.47,0.00034179,14]
[391948541,1761019875718,-500.0,0.00034179,14]
[391948542,1761019875732,-2337.47,0.00034179,14]
[391948543,1761019875746,-444.92059618,0.00034179,14]
[391948544,1761019875755,-2337.47,0.00034179,14]
[391948545,1761019875765,-2337.47,0.00034179,14]
[391948546,1761019875774,-2337.47,0.00034179,14]
[391948547,1761019875784,-500.0,0.00034179,14]
[391948548,1761019875793,-2337.47,0.00034179,14]
[391948549,1761019875802,-500.0,0.00034179,14]
[391948550,1761019875811,-2337.47,0.00034179,14]
[391948551,1761019875820,-500.0,0.00034179,14]
[391948552,1761019875829,-2337.47,0.00034179,14]
[391948553,1761019875838,-500.0,0.00034179,14]
[391948554,1761019875847,-2337.47,0.00034179,14]
[391948555,1761019875856,-500.0,0.00034179,14]
[391948556,1761019875865,-2337.47,0.00034179,14]
[391948557,1761019875875,-500.0,0.00034179,14]
[391948558,1761019875883,-2337.47,0.00034179,14]
[391948559,1761019875892,-500.0,0.00034179,14]
[391948560,1761019875902,-500.0,0.00034179,14]
[391948561,1761019875911,-500.0,0.00034179,14]
[391948562,1761019875920,-500.0,0.00034179,14]
[391948563,1761019875929,-500.0,0.00034179,14]
[391948564,1761019875938,-500.0,0.00034179,14]
[391948565,1761019875947,-500.0,0.00034179,14]
[391948566,1761019875957,-500.0,0.00034179,14]
[391948567,1761019875966,-500.0,0.00034179,14]
[391948568,1761019875975,-500.0,0.00034179,14]
[391948569,1761019875984,-500.0,0.00034179,14]
[391948570,1761019875998,-500.0,0.00034179,14]
[391948571,1761019876008,-500.0,0.00034179,14]
[391948572,1761019876018,-500.0,0.00034179,14]
[391948573,1761019876027,-500.0,0.00034179,14]
[391948574,1761019876036,-500.0,0.00034179,14]
[391948575,1761019876045,-407.53727668,0.00034179,14]
[391948576,1761019876054,-500.0,0.00034179,14]
[391948577,1761019876063,-500.0,0.00034179,14]
[391948578,1761019876074,-500.0,0.00034179,14]
[391948579,1761019876084,-500.0,0.00034179,14]
[391948580,1761019876093,-217.12101096,0.00034179,14]
[391948581,1761019876102,-500.0,0.00034179,14]
[391948582,1761019876112,-613.12067816,0.00034179,14]
[391948583,1761019876122,-500.0,0.00034179,14]
[391948584,1761019876132,-276.79927847,0.00034179,14]
[391948585,1761019876142,-500.0,0.00034179,14]
[391948586,1761019876152,-404.88019997,0.00034179,14]
[391948587,1761019876167,-500.0,0.00034179,14]
[391948588,1761019876176,-500.0,0.00034179,14]
[391948589,1761019876187,-500.0,0.00034179,14]
[391948590,1761019876196,-477.15370347,0.00034179,14]
[391948591,1761019876206,-500.0,0.00034179,14]
[391948592,1761019876215,-500.0,0.00034179,14]
[391948593,1761019876224,-500.0,0.00034179,14]
[391948594,1761019876233,-500.0,0.00034179,14]
[391948595,1761019876246,-500.0,0.00034179,14]
[391948596,1761019876255,-500.0,0.00034179,14]
[391948597,1761019876265,-500.0,0.00034179,14]
[391948598,1761019876274,-477.54696365,0.00034179,14]
[391948599,1761019876284,-500.0,0.00034179,14]
[391948600,1761019876294,-500.0,0.00034179,14]
[391948601,1761019876303,-500.0,0.00034179,14]
[391948602,1761019876312,-314.35006549,0.00034179,14]
[391948603,1761019876322,-500.0,0.00034179,14]
[391948604,1761019876331,-500.0,0.00034179,14]
[391948605,1761019876340,-500.0,0.00034179,14]
[391948606,1761019876350,-500.0,0.00034179,14]
[391948607,1761019876359,-500.0,0.00034179,14]
[391948608,1761019876369,-500.0,0.00034179,14]
[391948609,1761019876379,-500.0,0.00034179,14]
[391948610,1761019876388,-500.0,0.00034179,14]
[391948611,1761019876397,-500.0,0.00034179,14]
[391948612,1761019876407,-500.0,0.00034179,14]
[391948613,1761019876416,-500.0,0.00034179,14]
[391948614,1761019876425,-500.0,0.00034179,14]
[391948615,1761019876435,-500.0,0.00034179,14]
[391948616,1761019876445,-514.80350741,0.00034179,14]
[391948617,1761019876454,-500.0,0.00034179,14]
[391948618,1761019876464,-500.0,0.00034179,14]
[391948619,1761019876473,-500.0,0.00034179,14]
[391948620,1761019876483,-500.0,0.00034179,14]
[391948621,1761019876494,-500.0,0.00034179,14]
[391948622,1761019876504,-500.0,0.00034179,14]
[391948623,1761019876513,-500.0,0.00034179,14]
[391948624,1761019876522,-157.67400421,0.00034179,14]
[391948625,1761019876532,-547.46303336,0.00034179,14]
[391948626,1761019876541,-500.0,0.00034179,14]
[391948627,1761019876551,-500.0,0.00034179,14]
[391948628,1761019876561,-500.0,0.00034179,14]
[391948629,1761019876571,-500.0,0.00034179,14]
[391948630,1761019876581,-500.0,0.00034179,14]
[391948631,1761019876591,-500.0,0.00034179,14]
[391948632,1761019876601,-500.0,0.00034179,14]
[391948633,1761019876610,-500.0,0.00034179,14]
[391948634,1761019876620,-500.0,0.00034179,14]
[391948635,1761019876631,-264.40327327,0.00034179,14]
[391948636,1761019876647,-208.22320684,0.00034179,14]
[391948637,1761019876658,-608.17231328,0.00034179,14]
[391948638,1761019876667,-500.0,0.00034179,14]
[391948639,1761019876677,-500.0,0.00034179,14]
[391948640,1761019876687,-500.0,0.00034179,14]
[391948641,1761019876696,-500.0,0.00034179,14]
[391948642,1761019876706,-500.0,0.00034179,14]
[391948643,1761019876717,-500.0,0.00034179,14]
[391948644,1761019876727,-500.0,0.00034179,14]
[391948645,1761019876737,-500.0,0.00034179,14]
[391948646,1761019876750,-500.0,0.00034179,14]
[391948647,1761019876759,-500.0,0.00034179,14]
[391948648,1761019876769,-500.0,0.00034179,14]
[391948649,1761019876779,-500.0,0.00034179,14]
[391948650,1761019876788,-500.0,0.00034179,14]
[391948651,1761019876798,-500.0,0.00034179,14]
[391948652,1761019876807,-500.0,0.00034179,14]
[391948653,1761019876816,-238.45267063,0.00034179,14]
[391948654,1761019876826,-500.0,0.00034179,14]
[391948655,1761019876836,-500.0,0.00034179,14]
[391948656,1761019876845,-308.66210236,0.00034179,14]
[391948657,1761019876855,-500.0,0.00034179,14]
[391948658,1761019876864,-500.0,0.00034179,14]
[391948659,1761019876874,-500.0,0.00034179,14]
[391948660,1761019876884,-500.0,0.00034179,14]
[391948661,1761019876893,-500.0,0.00034179,14]
[391948662,1761019876903,-254.88350883,0.00034179,14]
[391948664,1761019876913,-500.0,0.00034179,14]
[391948665,1761019876922,-500.0,0.00034179,14]
[391948666,1761019876931,-500.0,0.00034179,14]
[391948668,1761019876941,-500.0,0.00034179,14]
[391948669,1761019876950,-500.0,0.00034179,14]
[391948670,1761019876959,-261.12575048,0.00034179,14]
[391948671,1761019876969,-500.0,0.00034179,14]
[391948672,1761019876978,-500.0,0.00034179,14]
[391948673,1761019876987,-531.06844437,0.00034179,14]
[391948674,1761019876999,-500.0,0.00034179,14]
[391948675,1761019877009,-500.0,0.00034179,14]
[391948676,1761019877019,-500.0,0.00034179,14]
[391948677,1761019877028,-500.0,0.00034179,14]
[391948678,1761019877038,-611.82265253,0.00034179,14]
[391948679,1761019877047,-500.0,0.00034179,14]
[391948680,1761019877057,-69481.83883638,0.0003418,31]
[391948681,1761019877082,-150.0,0.00034078,3]
[391948682,1761019877091,-5300.0,0.0003418,31]
[391948683,1761019877102,-1983.61326423,0.0003418,31]
[391948684,1761019877182,-273.17835114,0.00028064,2]
[391948685,1761019877194,-516.62564886,0.00028064,2]
[391948686,1761019877205,-500.0,0.00034078,14]
[391948687,1761019877215,-500.0,0.00034163,14]
[391948688,1761019877224,-53208.37435114,0.0003418,31]
[391948689,1761019877507,-150.0,0.00034078,3]
[391948690,1761019877518,-500.0,0.00034169,14]
[391948691,1761019877527,-500.0,0.00034169,14]
[391948692,1761019877537,-500.0,0.00034178,14]
[391948693,1761019877547,-500.0,0.00034179,14]
[391948694,1761019877556,-246.58016825,0.00034179,14]
[391948695,1761019877568,-253.41983175,0.00034179,14]
[391948696,1761019877578,-500.0,0.00034179,14]
[391948697,1761019877587,-500.0,0.00034179,14]
[391948698,1761019877597,-500.0,0.00034179,14]
[391948699,1761019877606,-27.58016848,0.00034179,14]
[391948700,1761019877622,-472.41983152,0.00034179,14]
[391948701,1761019877632,-500.0,0.00034179,14]
[391948702,1761019877641,-4372.32198952,0.0003418,31]
[391948703,1761019877687,-1466.45214843,0.0003418,31]
[391948704,1761019877698,-901.21757825,0.0003418,31]
[391948705,1761019877714,-150.0,0.00034078,3]
[391948706,1761019877723,-53913.35190264,0.0003418,31]
[391948707,1761019877732,-6335.3925493,0.0003418,30]
[391948708,1761019877746,-463.29499997,0.0003418,30]
[391948709,1761019877757,-610.97498698,0.0003418,30]
[391948710,1761019877769,-5450.0,0.0003418,30]
[391948711,1761019877780,-461.49999999,0.0003418,30]
[391948712,1761019877793,-493.8172841,0.0003418,30]
[391948713,1761019877804,-930.0,0.0003418,30]
[391948744,1761020109807,-225.99249801,0.00016134,2]
[391948748,1761020419017,570.0,0.00030137,120]
[391948749,1761020424111,-151.0,0.00016596,2]
[391948750,1761020425294,-182.68498478,0.00018219,2]
[391948751,1761020428374,-118.44121947,0.00018219,2]
[391948752,1761020428396,-66.5148213,0.00018219,2]
[391948753,1761020559745,-272.5191036,0.00015,2]
[391948754,1761020561282,-272.5191036,0.00015,2]
[391948757,1761020811097,154.55,0.00028759,120]
[391948759,1761020905225,-236.62044461,0.0001439,2]
[391948760,1761020908528,-202.35359626,0.0001439,2]
[391948761,1761020911547,-450.0,0.0001439,2]
[391948772,1761020934657,-450.0,0.0001439,2]
[391948774,1761020947275,-325.04601737,0.0001439,2]
[391948775,1761020947299,-124.95398263,0.000149,2]
[391948780,1761020970086,-105.6535818,0.000149,2]
[391948781,1761020970108,-44.3464182,0.000149,2]
[391948794,1761020993937,-157.95810929,0.000149,2]
[391948795,1761020993959,-22.04189071,0.000149,2]
[391948813,1761021031563,-222.33182952,0.000149,2]
[391948814,1761021031572,-173.4103028,0.000149,2]
[391948815,1761021031582,-156.86096539,0.000149,2]
[391948816,1761021031592,-3538.5,0.0001499,2]
[391948817,1761021031601,-207.60310392,0.0001499,2]
[391948818,1761021031611,-3538.5,0.0001499,2]
[391948819,1761021031622,-150.0,0.00014998,2]
[391948820,1761021031632,-582.54571482,0.00014999,2]
[391948821,1761021031642,-179.23208876,0.00014999,2]
[391948822,1761021031652,-500.0,0.00014999,2]
[391948823,1761021031662,-500.0,0.00014999,2]
[391948824,1761021031672,-500.0,0.00014999,2]
[391948825,1761021031682,-500.0,0.00014999,2]
[391948826,1761021031694,-500.0,0.00014999,2]
[391948827,1761021031703,-500.0,0.00014999,2]
[391948828,1761021031713,-587.42010008,0.00014999,2]
[391948829,1761021031723,-500.0,0.00014999,2]
[391948830,1761021031732,-500.0,0.00014999,2]
[391948831,1761021031742,-500.0,0.00014999,2]
[391948832,1761021031751,-500.0,0.00014999,2]
[391948833,1761021031761,-500.0,0.00014999,2]
[391948834,1761021031770,-500.0,0.00014999,2]
[391948835,1761021031779,-500.0,0.00014999,2]
[391948836,1761021031789,-500.0,0.00014999,2]
[391948838,1761021031798,-500.0,0.00014999,2]
[391948840,1761021031807,-500.0,0.00014999,2]
[391948842,1761021031817,-500.0,0.00014999,2]
[391948844,1761021031826,-500.0,0.00014999,2]
[391948846,1761021031835,-500.0,0.00014999,2]
[391948847,1761021031844,-500.0,0.00014999,2]
[391948848,1761021031852,-172943.21835149,0.00015,2]
[391948849,1761021031864,-105821.46361405,0.00015,2]
[391948850,1761021031875,-250.0,0.00015,2]
[391948851,1761021031893,-543.2265,0.00015,2]
[391948852,1761021031904,-370.00000001,0.00015,2]
[391948854,1761021031915,-36491.33912972,0.00015,2]
[391948856,1761021031926,-1958.11851021,0.00015,2]
[391948863,1761021037668,-360.89543394,0.000149,2]
[391948864,1761021037677,-26757.86606606,0.00015,2]
[391948865,1761021037696,-18201.88130106,0.00015,2]
[391948866,1761021037728,-635.38075752,0.00015,2]
[391948867,1761021037743,-1214.2073916,0.00015,2]
[391949026,1761021039539,-257275.28986722,0.00015,2]
[391949028,1761021039550,-265.47400416,0.00015,2]
[391949030,1761021039561,-1068.9067907,0.00015,2]
[391949033,1761021039573,-2606.22691604,0.00015,2]
[391949035,1761021039583,-2213.92529412,0.00015,2]
[391949037,1761021039595,-1580.79944066,0.00015,2]
[391949039,1761021039606,-5852.29938424,0.00015,2]
[391949051,1761021039716,-1485.631959,0.00015,2]
[391949089,1761021042586,-283.18,0.00015,2]
[391949090,1761021042840,-1121.1302256,0.00015,2]
[391949091,1761021042856,-973.38075612,0.00015,2]
[391949116,1761021045634,-974.9999998,0.00015,2]
[391949117,1761021045648,-1983.83326174,0.00015,2]
[391949118,1761021045746,-2223.74664,0.00015,2]
[391949119,1761021045761,-7600.8534,0.00015,2]
[391949120,1761021045808,-13260.32565196,0.00015,2]
[391949121,1761021045822,-910.07126,0.00015,2]
[391949122,1761021045860,-6608.7710586,0.00015,2]
[391949123,1761021045918,-47662.35804202,0.00015,2]
[391949128,1761021055481,-1018.84793573,0.00014999,5]
[391949129,1761021055503,-1018.84793573,0.00014999,5]
[391949130,1761021055528,-1018.84793573,0.00014999,5]
[391949131,1761021055549,-543.45619281,0.00014999,5]
[391949132,1761021086448,1350.33,0.00010076,2]
[391949133,1761021086640,1350.33,0.00010607,2]
[391949134,1761021086855,1350.33,0.00011137,2]
[391949135,1761021087056,1350.33,0.00011667,2]
[391949136,1761021087270,1350.33,0.00012198,2]
[391949137,1761021087465,1350.33,0.00012728,2]
[391949138,1761021100304,-362.3242838,0.00013258,2]
[391949139,1761021101782,-228.82352437,0.00013258,2]
[391949140,1761021109827,-178.03,0.00013258,2]
[391949141,1761021111396,-508.57332408,0.00013258,2]
[391949161,1761021805102,-72.57886775,0.00013258,2]
[391949162,1761021805126,-130.70742207,0.00013789,2]
[391949163,1761021845772,-1219.62257793,0.00013789,2]
[391949164,1761021877724,5000.0,0.0003,120]
[391949165,1761021906960,150.0,0.00013488,2]
[391949166,1761021907009,150.0,0.00013488,2]
[391949167,1761021907069,150.0,0.00013488,2]
[391949168,1761021907172,150.00000001,0.00013488,2]
[391949169,1761021914021,150.0,0.00013488,2]
[391949170,1761021914104,150.0,0.00013488,2]
[391949171,1761021914181,150.0,0.00013488,2]
[391949172,1761021914255,150.0,0.00013488,2]
[391949173,1761021914320,150.0,0.00013488,2]
[391949174,1761021920128,150.0,0.00013488,2]